Cogmind - Beta 14 @@@ ROGUE MODE // 2024.11.03 @ 09:31:23 Player: void Result: Destroyed by S-10 Pest with Light Assault Rifle Performance ------------- Evolutions (1) 500 Regions Visited (3) 600 Robots Destroyed (34) 170 Value Destroyed (596) 596 Prototype IDs (0) 0 Alien Tech Used (0) 0 Bonus (39) 39 TOTAL SCORE: 1905 Bonus ------- Follower Combat Kills 39 Cogmind --------- Core Integrity 0/400 Matter 280/300 Energy 47/100 System Corruption 0% Temperature Cool (0) Movement Walking (190) Ox1 Location -9/Materials Parts ------- > --- POWER (1) -------- (None) > --- PROPULSION (2) --- Aluminum Leg > --- UTILITY (4) ------ Heat Sink Improved Heat Sink Medium Storage Unit Advanced Visual Processing Unit > --- WEAPON (2) ------- Light EM Pulse Cannon Light Assault Rifle > --- INVENTORY (10) --- Flight Unit Flight Unit Heat Sink Small Laser Mining Laser Peak State ------------ > --- POWER ------------ Light Ion Engine > --- PROPULSION ------- Flight Unit Flight Unit > --- UTILITY ---------- Heat Sink Improved Heat Sink Medium Storage Unit Advanced Visual Processing Unit > --- WEAPON ----------- Field Laser Field Laser > --- INVENTORY -------- Light EM Pulse Cannon Light Assault Rifle Improved Light Cannon Mining Laser Explosive Trap Explosive Trap Explosive Trap [Rating: 17] Favorites ----------- Power Light Ion Engine Engine Light Ion Engine Propulsion Light Treads Treads Light Treads Leg Aluminum Leg Flight Unit Flight Unit Utility Medium Storage Unit Device Heat Sink Storage Medium Storage Unit Processor Advanced Visual Processing Unit Weapon Medium Laser Energy Gun Medium Laser Energy Cannon Light EM Pulse Cannon Ballistic Gun Light Assault Rifle Ballistic Cannon Light Cannon Special Weapon Mining Laser Build | -11 -10 -10 -9 ------- Run | Yrd Mat Min Mat Slots Evolved 2 | . . . 2 Power . | . . . . Propulsion . | . . . . Utility 2 | . . . 2 Weapon . | . . . . Parts Attached 44 | 8 4 3 29 Power 5 | 1 . . 4 Engine 5 | 1 . . 4 Core . | . . . . Reactor . | . . . . Propulsion 9 | 2 . 1 6 Treads 2 | 2 . . . Leg 3 | . . 1 2 Wheel . | . . . . Hover . | . . . . Flight 4 | . . . 4 Utility 11 | 2 3 . 6 Device 8 | 1 2 . 5 Storage 2 | 1 1 . . Processor 1 | . . . 1 Hackware . | . . . . Protection . | . . . . Artifact . | . . . . Weapon 19 | 3 1 2 13 Energy Gun 9 | 2 1 1 5 Energy Cannon 1 | . . . 1 Ballistic Gun 5 | 1 . . 4 Ballistic Cannon 2 | . . 1 1 Launcher . | . . . . Special Weapon 2 | . . . 2 Impact Weapon . | . . . . Slashing Weapon . | . . . . Piercing Weapon . | . . . . Special Melee Weapon . | . . . . Unidentified Prototypes . | . . . . Parts Lost 22 | . 2 5 15 Power 4 | . 1 . 3 Propulsion 5 | . . 2 3 Utility 5 | . 1 1 3 Weapon 8 | . . 2 6 Highest Loss Streak 5 | . 1 5 5 To Critical Strikes . | . . . . Average Slot Usage (%) 82 | . 86 68 85 Engine 6 | . 6 . 9 Treads 13 | . 28 17 . Leg 2 | . . 2 3 Flight 6 | . . . 14 Device 12 | . 8 8 16 Storage 12 | . 14 14 11 Processor 3 | . . . 7 Energy Gun 18 | . 22 19 14 Ballistic Gun 3 | . 5 . 2 Ballistic Cannon 2 | . . 5 4 Peak Build Rating 17 | 7 7 6 17 Average Rating 8 | 5 6 4 13 On Entrance 4 | . 7 6 6 Naked Turns . | . . . . Heaviest Build 25 | 14 20 16 25 Greatest Support 40 | 40 40 40 20 Greatest Overweight (x) 6 | 1 . 4 6 Average Overweight (x) . | . . . 1 Largest Inventory Capacity 10 | 8 10 10 10 Average Capacity 9 | 7 9 10 10 Most Carried 10 | 3 6 9 10 Average Carried 5 | . 3 8 7 Final Capacity 10 | 8 10 10 10 Final Carried 9 | 2 6 9 5 Class Distribution -------------------- 66% | Mutant 33% | Scavenger-Mutant Dominant Class ---------------- Mutant | -10/Materials Mutant | -10/Mines Scavenger-Mutant | -9/Materials Resources | -11 -10 -10 -9 ----------- Run | Yrd Mat Min Mat Matter Collected 737 | 247 113 60 317 Remotely . | . . . . Salvage Created 955 | 48 247 . 660 Parts 66 | 5 18 . 43 Haulers Intercepted . | . . . . Recyclers Shooed . | . . . . Parts Field Recycled . | . . . . Retrieved Matter . | . . . . Parts Self-Destructed . | . . . . Prevented . | . . . . Kills | -11 -10 -10 -9 ------- Run | Yrd Mat Min Mat Combat Hostiles Destroyed 25 | . 9 1 15 Guns 22 | . 9 . 13 Cannons 3 | . . 1 2 Classes Destroyed 7 | 1 3 1 2 Tunneler 3 | 3 . . . Recycler 3 | . . . 3 Watcher 4 | . 1 . 3 Swarmer 15 | . 6 . 9 Grunt 8 | . 3 . 5 Sentry 1 | . . . 1 Assembled 1 | . . 1 . Best Kill Streak 4 | 1 3 1 4 Combat Bots Only 4 | . 3 1 4 Max Kills in Single Turn 2 | 1 2 1 1 Gunslinging 1 | . 1 . . Exploded . | . . . . Melee . | . . . . Uniques/NPCs Destroyed . | . . . . Combat | -11 -10 -10 -9 -------- Run | Yrd Mat Min Mat Hostile Shots Fired 294 | . 48 11 235 Missed 88 | . 15 2 71 Damage Taken 2397 | . 483 321 1593 Core 576 | . 60 114 402 Absorbed by Shields . | . . . . Core Remaining (%) 65 | 100 . 30 . Volleys Fired 115 | 14 30 9 62 Largest 2 | 2 2 2 2 Hottest 126 | 90 100 100 126 Shots Fired 208 | 28 60 11 109 Gun 170 | 28 60 3 79 Cannon 36 | . . 8 28 Launcher . | . . . . Special 2 | . . . 2 Kinetic 71 | 11 19 8 33 Thermal 133 | 14 41 3 75 Explosive . | . . . . Electromagnetic 4 | 3 . . 1 Robot Hit Streak 14 | 7 14 5 6 Robot Miss Streak 5 | 2 3 1 5 Penetration Max . | . . . . Secondary Targets 3 | . 2 . 1 Max Gunslinging Chain 1 | . 1 . 1 Shots Hit Robots 113 | 17 39 8 49 Core Hits 51 | 5 16 4 26 Critical Kills . | . . . . Critical Parts Destroyed . | . . . . Critical Strikes 8 | 1 3 1 3 Burn 7 | 1 3 1 2 Blast 1 | . . . 1 Melee Attacks . | . . . . Impact . | . . . . Slashing . | . . . . Piercing . | . . . . Sneak Attacks . | . . . . Combat Hostiles . | . . . . Follow-up Attacks . | . . . . Damage Inflicted 1599 | 160 435 136 868 Guns 1276 | 160 435 25 656 Cannons 323 | . . 111 212 Explosions . | . . . . Melee . | . . . . Ramming . | . . . . Kinetic 492 | 62 70 111 249 Thermal 1095 | 98 365 25 607 Explosive . | . . . . Electromagnetic 12 | . . . 12 Impact . | . . . . Slashing . | . . . . Piercing . | . . . . Highest Corruption 2 | . 2 2 . Average Corruption 2 | . 2 2 . Corruption Purged . | . . . . Corruption Blocked . | . . . . Effects 10 | . 5 5 . Message Errors 2 | . 2 . . Matter Fused 4 | . 2 2 . Energy Discharges 4 | . 1 3 . Overload Shots . | . . . . Overflow Damage 15 | . . . 15 Projectiles 15 | . . . 15 Explosions . | . . . . Melee . | . . . . Knockbacks 6 | . . 4 2 Impact . | . . . . Kinetic 5 | . . 3 2 Secondary 1 | . . 1 . Self-Inflicted Damage . | . . . . Shots . | . . . . Rammed . | . . . . Targets Rammed 1 | . . . 1 Kicked 1 | . . . 1 Crushed . | . . . . Highest Temperature 249 | 100 198 24 249 Average Temperature 61 | 41 64 11 72 Received Heat Transfer 414 | . 78 . 336 Siege Activations . | . . . . Robots Corrupted . | . . . . Combat Hostiles . | . . . . Parts Fried . | . . . . Impact Corruptions . | . . . . Robots Melted . | . . . . Combat Hostiles . | . . . . Parts Melted 5 | . 3 . 2 Heat Transferred 3330 | 370 1295 148 1517 Parts Sabotaged . | . . . . Parts Stolen . | . . . . Parts Stripped . | . . . . Power Chain Reactions . | . . . . Alert | -11 -10 -10 -9 ------- Run | Yrd Mat Min Mat Peak Influence 286 | 15 286 60 210 Initial 60 | . 9 60 . Average 110 | 4 181 42 101 Maximum Alert Level 1 | . 1 . 1 Low Security (%) 83 | 100 55 100 95 Level 1 16 | . 44 . 4 Level 2 . | . . . . Level 3 . | . . . . Level 4 . | . . . . Level 5 . | . . . . High Security . | . . . . Max Security . | . . . . Squads Dispatched 4 | . 3 . 1 Investigation 2 | . 2 . . Extermination . | . . . . Reinforcement 2 | . 1 . 1 Assault . | . . . . Garrison . | . . . . Intercept . | . . . . Searches Triggered . | . . . . Construction Impeded 1 | . . . 1 Haulers Reinforced . | . . . . Active Scanning Responses . | . . . . Cargo Convoy Interrupts . | . . . . Stealth | -11 -10 -10 -9 --------- Run | Yrd Mat Min Mat Distress Signals 6 | . 2 2 2 Communications Jammed . | . . . . Distress Signals . | . . . . Times Spotted 52 | . 17 4 31 Peak Tracking Total 7 | . 7 2 5 Tactical Retreats 3 | . 2 . 1 Traps | -11 -10 -10 -9 ------- Run | Yrd Mat Min Mat Traps Triggered 3 | . 3 . . Indirectly . | . . . . Trap Hack Attempts . | . . . . Triggered . | . . . . Disarmed . | . . . . Reprogrammed . | . . . . Reused 2 | . . . 2 Traps Extracted . | . . . . Installed 3 | . . . 3 Triggered 2 | . . . 2 Most Traps Carried 3 | . . 3 3 Machines | -11 -10 -10 -9 ---------- Run | Yrd Mat Min Mat Machines Disabled . | . . . . Max in Single Turn . | . . . . Machines Repaired . | . . . . Machines Dismantled . | . . . . Machines Sabotaged . | . . . . Overloaded Fab Kills . | . . . . Hacking | -11 -10 -10 -9 --------- Run | Yrd Mat Min Mat Machines Accessed 5 | . 3 . 2 Terminals 5 | . 3 . 2 Fabricators . | . . . . Repair Stations . | . . . . Recycling Units . | . . . . Scanalyzers . | . . . . Garrison Access . | . . . . Total Hacks 8 | . 5 . 3 Successful 4 | . 3 . 1 Failed 4 | . 2 . 2 Catastrophic 2 | . 1 . 1 Database Lockouts . | . . . . Manual 4 | . 2 . 2 Terminals 8 | . 5 . 3 Fabricators . | . . . . Repair Stations . | . . . . Recycling Units . | . . . . Scanalyzers . | . . . . Garrison Access . | . . . . Terminal Hacks 4 | . 3 . 1 Branch Access Points 2 | . 1 . 1 Hauler Manifests 2 | . 2 . . Fabricator Hacks . | . . . . Repair Station Hacks . | . . . . Recycling Unit Hacks . | . . . . Scanalyzer . | . . . . Garrison Access Hacks . | . . . . Unauthorized Hacks . | . . . . Terminals . | . . . . Fabricators . | . . . . Repair Stations . | . . . . Recycling Units . | . . . . Scanalyzers . | . . . . Garrison Access . | . . . . Data Cores Recovered . | . . . . Used . | . . . . Hacking Detections 4 | . 2 . 2 Full Trace Events 1 | . 1 . . Feedback Events . | . . . . Feedback Blocked . | . . . . Robot Schematics Acquired . | . . . . Robots Built . | . . . . Authchips . | . . . . Time . | . . . . Total Robot Build Rating . | . . . . Part Schematics Acquired . | . . . . Parts Built . | . . . . Authchips . | . . . . Time . | . . . . Total Part Build Rating . | . . . . Parts Repaired . | . . . . Time . | . . . . Parts Recycled . | . . . . Recycled Matter . | . . . . Retrieved Matter . | . . . . Retrieved Components . | . . . . Parts Scanalyzed . | . . . . Part Schematics Acquired . | . . . . Parts Damaged . | . . . . Bothacking | -11 -10 -10 -9 ------------ Run | Yrd Mat Min Mat Used RIF Installer . | . . . . Robots Hacked . | . . . . Non-combat . | . . . . Combat . | . . . . Robot Hacks Applied . | . . . . Relay Couplers Released . | . . . . Fabnet Peak Effective % . | . . . . Robots Rewired . | . . . . Allies Hacked . | . . . . Hacks Repelled . | . . . . Allies | -11 -10 -10 -9 -------- Run | Yrd Mat Min Mat Total Allies 3 | . . 3 . Largest Group 3 | . . 3 . Highest-Rated Group 40 | . . 40 . Highest-Rated Ally 16 | . . 16 . Total Orders . | . . . . Ally Attacks 7 | . . 7 . Total Damage 94 | . . 94 . Kills 2 | . . 2 . Allies Corrupted . | . . . . Allies Melted . | . . . . Intel | -11 -10 -10 -9 ------- Run | Yrd Mat Min Mat Robot Analysis Total . | . . . . Derelict Logs Recovered 1 | . . 1 . Drone Launches . | . . . . Drone Recoveries . | . . . . Exploration | -11 -10 -10 -9 ------------- Run | Yrd Mat Min Mat Turns Passed 2147 | 149 695 394 909 Spaces Moved 960 | 65 360 196 339 Core 36 | 8 . 18 10 Treads 562 | 57 360 145 . Legs 106 | . . 33 73 Wheels . | . . . . Hover . | . . . . Flight 256 | . . . 256 Fastest Speed 50 | 50 160 160 117 Average Speed 173 | 148 160 173 193 Slowest Speed 440 | 160 160 250 440 Overloaded Moves . | . . . . Propulsion Burnouts . | . . . . Robots Hopped . | . . . . Cave-ins Triggered . | . . . . Exploration Rate (%) 37 | 5 72 35 39 Regions Visited 3 Branch Regions 1 Pre-discovered Areas . | . . . . Known Exits Taken 1 | . 1 . . Unknown Exits Taken 2 | 1 . 1 . Scrap Searched 1 | . . 1 . Spaces Dug 2 | . . . 2 Terrain Destroyed 3 | . . . 3 Melee . | . . . . Projectile 3 | . . . 3 AOE . | . . . . Terrain Rammed . | . . . . Walls Destroyed . | . . . . Machines Disabled . | . . . . Actions | -11 -10 -10 -9 --------- Run | Yrd Mat Min Mat Total 1225 | 89 422 239 475 Wait 71 | . 23 27 21 Move 957 | 64 359 195 339 Hop . | . . . . Pick Up 21 | 3 4 5 9 Fast Attach 22 | 6 2 1 13 Attach 14 | 1 . 2 11 Detach 2 | . 1 . 1 Swap 8 | 1 2 . 5 Drop 11 | . 1 . 10 Fire 115 | 14 30 9 62 Melee . | . . . . Ram . | . . . . Kick 1 | . . . 1 Crush . | . . . . Escape Stasis . | . . . . Rewire . | . . . . Trap 3 | . . . 3 Miscellaneous . | . . . . Route ------- -11/Scrapyard -10/Materials (discovered 2 exits: *Mat / *Min) -10/Mines -9/Materials (discovered 2 exits: Min x2) History --------- Turn | Location | Event 35 | -11/Scrapyard | Discovered new exit (range 16) 150 | -11/Scrapyard | Entered Materials 290 | -10/Materials | Discovered new exit (range 5) 315 | -10/Materials | Build established: Mutant 477 | -10/Materials | Identified exit to Mines 623 | -10/Materials | Discovered new exit (range 16) 845 | -10/Materials | Entered Mines 893 | -10/Mines | Found a hidden stash of uninstalled traps 923 | -10/Mines | Received a Rocket Launcher from a helpful Derelict 962 | -10/Mines | Discovered new exit (range 4) 1006 | -10/Mines | Assisted by bots powering up and referring to "LRC-V3" 1072 | -10/Mines | Assembled infested the area 1096 | -10/Mines | Core integrity fell below 50% 1128 | -10/Mines | Lost 5 parts (2n1u2w) 1239 | -10/Mines | Entered Materials 1239 | -9/Materials | Evolved 2 slots: Utility x2 1240 | -9/Materials | Identified exit to Mines 1388 | -9/Materials | Lost 5 parts (1p1n1u2w) 1652 | -9/Materials | Build established: Scavenger-Mutant 1790 | -9/Materials | Core integrity fell below 50% 2021 | -9/Materials | Lost 3 parts (1p2w) 2134 | -9/Materials | Core integrity fell below 20% 2148 | -9/Materials | Destroyed by S-10 Pest with Light Assault Rifle Last Messages --------------- 02036_ Kicked K-01 Serf. 02041_ K-01 Serf cleans the Material Processor. 02051_ K-01 Serf cleans the Fusion Modulator. 02097_ K-01 Serf cleans the Neutrino Reactor. 02112_ Y-45 Defender destroyed. 02117_ K-01 Serf collects debris. 02126_ R-06 Scavenger collects Beam Rifle. 02128_ K-01 Serf collects debris. 02129_ G-34 Mercenary destroyed. 02129_ Lgt. Ion Engine destroyed. 02130_ R-06 Scavenger collects Ion Engine. 02132_ K-01 Serf collects debris. 02134_ R-06 Scavenger collects Aluminum Leg. 02135_ K-01 Serf collects debris. 02136_ Beam Rifle destroyed. 02138_ Field Laser destroyed. 02141_ R-06 Scavenger collects Aluminum Leg. 02142_ K-01 Serf collects debris. 02142_ Aluminum Leg destroyed. 02146_ K-01 Serf collects debris. Map ----- +----------------------------------------------------+ | # #????????????????????????? | | # = #????????????????????????? | | # = % #????????????????????????? | | ## ! %* #????????????????????????? | | ?# =% ##/#######??????????????????? | | ?# ! # #??????????????????? | | ## =** % # """ #? ????????????????? | | #= =* # """ #? ????????????????? | | !% ** # """ #? ????????????????? | | #####"Y"## # +? ???????????????? | | #???#"""## # """ #? ???????????????? | | #???###### # """ #? ???????????????? | | #####?????# # """ #? ???????????????? | | #?????# # +? ???????????????? | | #?????# ##+######### #??????????????? | | ! #?????# # ## #??????????????? | | [ #?????# # ## #??????????????? | | #?????# # ##k#??????????????? | | #?????# # ## #??????????????? | | #?????# ##+###### ###????????????? | | #?????+ #??# u #????????????? | | #####?????# ##### #??# ##???????????? | | ??????????# ????# #??# s ????????????? | | ########??# ??###+#### s#????????????? | | #??# ??# # #????????????? | | #??#???# """ ## @#?????????????? | | ="" #??????# """ ## #?????????????? | | """" #??????# """ ## #?????????????? | | """ #??????# ## g #?????????????? | | """ #??????# ## s##????????????? | | "" #??????#####+## #????????????? | | #????????# #????????????? | | ########??# a%k ????? | | ?##???????# ######## #???? | | ??????????# """ ## #????????????? | | ??????????# """ ####+###????????????? | | ??????????# """ #???????????????????? | | ??????????# ^ #???????????????????? | | ?#????????# #???????????????????? | | ??????????#"" #???????????????????? | | ??##??????#"Y #???????????????????? | | ??????????#"" ????????????????????? | | ??????????# ????????????????????? | | ??????????# ????????????????????? | | ??????????########+#????????????????????? | | ??#?????????????????????????????????????? | | ????????????????????????????????????????? | | ???#???#????????????????????????????????? | | #?????#?????????????????????????????????? | | ????????????????????????????????????????? | +----------------------------------------------------+ Best States ------------- Heat Dissipation 52 Energy Generation 12 Energy Capacity 265 Matter Stores 300 Matter Capacity 300 Sight Range 20 Terrain Scan Range 14 Terrain Scan Density 10 Evasion (%) 40 Recoil Reduction 2 Item Schematics ----------------- None Robot Schematics ------------------ None Fabricated ------------ Nothing Alien Tech Used ----------------- None Achievements -------------- None Challenges ------------ None Game ------ Seed CargoCloakAxe Manual? 0 Play Time 00:22:32 Cumulative 52.2 hours Start 2024.11.03 @ 09:08:49 End 2024.11.03 @ 09:31:23 Sessions 1 Manual Loads 0 Difficulty Rogue Special Mode None Game No. 84 Rogue 71 Adventurer 13 Explorer 0 Win Type - Total 0 Types 0/0/0/0/0/0/0/0/0 Lore% 8 Gallery% 35 Achievement% 27 Wizard Run 0 Options --------- Layout 0 ASCII 0 Keyboard 0 Movement Mouse Keybinds 0 Fullscreen 2 Font 16/SmallcapsGlow Map View 44x27 Zoom Use 99% Tactical HUD 1 Map Filters NONE Filters NONE Steam 1 RUN: 515509ac-0d08-4d26-a3fe-a2ae834e6ea2